fUST/lending_fUST_20250611
["ID","MTS","AMOUNT","RATE_DAILY","PERIOD"]
[365401058,1749655838056,-10963.90069888,0.0002,2]
[365401060,1749655838066,-4609.23722143,0.0002,2]
[365401062,1749655838075,-551.3,0.00020058,2]
[365401063,1749655838084,-747.9591807,0.00020651,2]
[365401066,1749655838094,-1062.392,0.0002084,2]
[365401067,1749655838103,-1703.2516951,0.00021,2]
[365401069,1749655838113,-1102.61,0.00021014,2]
[365401072,1749655838123,-11417.6020963,0.000215,2]
[365401074,1749655838135,-1033.82145535,0.000215,2]
[365401076,1749655838146,-442.23880435,0.00021677,2]
[365401078,1749655838155,-420.0,0.00021777,2]
[365401080,1749655838166,-972.13974029,0.000218,6]
[365401083,1749655838187,-4027.86025971,0.000218,6]
[365401085,1749655838197,-203.94,0.00021853,2]
[365401087,1749655838207,-300.0,0.0002186,2]
[365401089,1749655838217,-6192.30996422,0.00021861,2]
[365401091,1749655838227,-460.0,0.00021861,4]
[365401093,1749655838237,-460.0,0.00021861,4]
[365401095,1749655838249,-460.0,0.00021861,4]
[365401097,1749655838258,-1382.36,0.00021861,4]
[365401099,1749655838268,-1216.83,0.00021861,4]
[365401101,1749655838278,-2711.97,0.00021861,4]
[365401103,1749655838287,-1361.86,0.00021861,4]
[365401105,1749655838297,-460.0,0.00021861,4]
[365401107,1749655838307,-460.0,0.00021861,4]
[365401109,1749655838316,-473.54,0.00021861,4]
[365401111,1749655838326,-460.0,0.00021861,4]
[365401113,1749655838336,-833.58,0.00021861,4]
[365401115,1749655838345,-460.0,0.00021861,4]
[365401117,1749655838355,-1222.58,0.00021861,4]
[365401119,1749655838364,-180.10970981,0.00021861,4]
[365401121,1749655838374,-479.07022859,0.00021862,2]
[365401123,1749655838383,-460.0,0.00021862,4]
[365401125,1749655838392,-460.0,0.00021862,4]
[365401127,1749655838403,-460.0,0.00021862,4]
[365401129,1749655838412,-460.0,0.00021862,4]
[365401131,1749655838422,-460.0,0.00021862,4]
[365401133,1749655838432,-460.0,0.00021862,4]
[365401135,1749655838441,-460.0,0.00021862,4]
[365401137,1749655838451,-460.0,0.00021862,4]
[365401139,1749655838460,-460.0,0.00021862,4]
[365401141,1749655838470,-460.0,0.00021862,4]
[365401143,1749655838480,-460.0,0.00021862,4]
[365401145,1749655838490,-1403.55,0.00021862,4]
[365401147,1749655838503,-460.0,0.00021862,4]
[365401149,1749655838513,-460.0,0.00021862,4]
[365401151,1749655838523,-460.0,0.00021862,4]
[365401153,1749655838532,-460.0,0.00021862,4]
[365401155,1749655838542,-350.0,0.00021862,4]
[365401157,1749655838551,-509.8947904,0.00021862,4]
[365401159,1749655838562,-460.0,0.00021862,4]
[365401162,1749655838576,-460.0,0.00021862,4]
[365401164,1749655838585,-460.0,0.00021862,4]
[365401166,1749655838594,-460.0,0.00021862,4]
[365401168,1749655838603,-533.79,0.00021862,4]
[365401169,1749655838616,-460.0,0.00021862,4]
[365401171,1749655838625,-460.0,0.00021862,4]
[365401173,1749655838635,-460.0,0.00021862,4]
[365401176,1749655838645,-1580.97,0.00021862,4]
[365401177,1749655838654,-460.0,0.00021862,4]
[365401180,1749655838664,-460.0,0.00021862,4]
[365401182,1749655838673,-460.0,0.00021862,4]
[365401184,1749655838683,-460.0,0.00021862,4]
[365401186,1749655838693,-460.0,0.00021863,2]
[365401188,1749655838703,-460.0,0.00021863,4]
[365401190,1749655838713,-460.0,0.00021863,4]
[365401192,1749655838721,-460.0,0.00021863,4]
[365401194,1749655838730,-460.0,0.00021863,4]
[365401196,1749655838739,-460.0,0.00021863,4]
[365401198,1749655838752,-460.0,0.00021863,4]
[365401200,1749655838761,-158.592,0.00021863,2]
[365401202,1749655838770,-460.0,0.00021863,4]
[365401204,1749655838779,-505.06,0.00021863,4]
[365401206,1749655838789,-460.0,0.00021863,4]
[365401208,1749655838799,-460.0,0.00021863,4]
[365401210,1749655838809,-460.0,0.00021863,4]
[365401212,1749655838818,-460.0,0.00021863,4]
[365401214,1749655838828,-460.0,0.00021863,2]
[365401216,1749655838837,-500.0,0.00021863,2]
[365401218,1749655838847,-500.0,0.00021863,2]
[365401220,1749655838857,-500.0,0.00021863,2]
[365401222,1749655838866,-500.0,0.00021863,2]
[365401224,1749655838875,-500.0,0.00021863,2]
[365401226,1749655838885,-312.58189249,0.00021863,2]
[365401228,1749655838898,-500.0,0.00021863,2]
[365401230,1749655838908,-500.0,0.00021863,2]
[365401232,1749655838918,-500.0,0.00021863,2]
[365401234,1749655838927,-500.0,0.00021863,2]
[365401236,1749655838936,-437.56862847,0.00021863,2]
[365401238,1749655838945,-288.71968765,0.00021863,2]
[365401240,1749655838955,-500.0,0.00021863,2]
[365401242,1749655838965,-460.0,0.00021863,4]
[365401244,1749655838975,-460.0,0.00021864,4]
[365401246,1749655838985,-460.0,0.00021864,4]
[365401248,1749655838997,-295.99655748,0.00021864,2]
[365401250,1749655839007,-460.0,0.00021864,4]
[365401252,1749655839017,-460.0,0.00021864,4]
[365401254,1749655839027,-460.0,0.00021864,4]
[365401256,1749655839037,-460.0,0.00021864,4]
[365401258,1749655839046,-420.0,0.00021864,4]
[365401260,1749655839056,-460.0,0.00021864,4]
[365401262,1749655839066,-460.0,0.00021864,4]
[365401264,1749655839075,-332.003201,0.00021867,4]
[365401267,1749655839085,-170.80343031,0.00021867,4]
[365401268,1749655839094,-213.16534259,0.00021894,2]
[365401271,1749655839103,-844.64040732,0.00021894,2]
[365401273,1749655839114,-160.0,0.00021894,2]
[365401274,1749655839123,-160.0,0.00021894,2]
[365401276,1749655839132,-160.0,0.00021894,2]
[365401278,1749655839142,-229.71724145,0.00021894,2]
[365401280,1749655839151,-160.0,0.00021894,2]
[365401283,1749655839161,-835.03886221,0.00021894,2]
[365401284,1749655839171,-424.19973472,0.00021894,2]
[365401287,1749655839181,-160.0,0.00021894,2]
[365401289,1749655839191,-11860.25191276,0.00021896,2]
[365401291,1749655839201,-160.0,0.00021896,2]
[365401293,1749655839211,-2061.85221504,0.000219,6]
[365401295,1749655839220,-499.999999,0.0002192,2]
[365401297,1749655839230,-1653.91,0.00021969,2]
[365401299,1749655839240,-600.0,0.0002199,2]
[365401301,1749655839251,-3195.25059897,0.0002199,2]
[365401304,1749655839261,-1000.0,0.00022,22]
[365401307,1749655839271,-168.0,0.00022,2]
[365401308,1749655839280,-2061.85221498,0.00022003,6]
[365401311,1749655839290,-160.0,0.0002203,3]
[365401313,1749655839300,-207.4,0.00022035,2]
[365401314,1749655839309,-5000.0,0.00022042,2]
[365401317,1749655839319,-750.0,0.00022042,2]
[365401319,1749655839328,-819.68109792,0.00022042,2]
[365401320,1749655839338,-4249.89430714,0.00022042,2]
[365401323,1749655839348,-413.0,0.00022047,2]
[365401324,1749655839358,-363.7766325,0.00022082,2]
[365401326,1749655839368,-2061.85221498,0.00022107,6]
[365401329,1749655839378,-439.88,0.00022127,3]
[365401330,1749655839388,-151.0,0.0002213,2]
[365401332,1749655839397,-500.0,0.0002213,2]
[365401334,1749655839407,-151.73298142,0.0002213,2]
[365401336,1749655839416,-442.23880434,0.00022133,2]
[365401338,1749655839426,-460.0,0.00022135,4]
[365401341,1749655839436,-460.0,0.00022135,4]
[365401344,1749655839445,-460.0,0.00022135,4]
[365401346,1749655839455,-1382.36,0.00022135,4]
[365401348,1749655839465,-1216.83,0.00022135,4]
[365401361,1749655839577,-2711.97,0.00022135,4]
[365401364,1749655839587,-1361.86,0.00022135,4]
[365401366,1749655839597,-460.0,0.00022135,4]
[365401369,1749655839607,-460.0,0.00022135,4]
[365401371,1749655839618,-473.54,0.00022135,4]
[365401373,1749655839628,-460.0,0.00022135,4]
[365401375,1749655839638,-833.58,0.00022135,4]
[365401376,1749655839649,-460.0,0.00022135,4]
[365401378,1749655839659,-1222.58,0.00022135,4]
[365401380,1749655839669,-460.0,0.00022136,4]
[365401383,1749655839685,-460.0,0.00022136,4]
[365401384,1749655839696,-460.0,0.00022136,4]
[365401386,1749655839705,-460.0,0.00022136,4]
[365401388,1749655839716,-460.0,0.00022136,4]
[365401390,1749655839725,-460.0,0.00022136,4]
[365401392,1749655839735,-400.0,0.00022136,4]
[365401394,1749655839746,-460.0,0.00022136,4]
[365401396,1749655839756,-460.0,0.00022136,4]
[365401398,1749655839766,-1403.55,0.00022136,4]
[365401400,1749655839776,-460.0,0.00022136,4]
[365401402,1749655839786,-460.0,0.00022136,4]
[365401404,1749655839796,-460.0,0.00022136,4]
[365401406,1749655839806,-460.0,0.00022136,4]
[365401408,1749655839815,-460.0,0.00022136,4]
[365401410,1749655839825,-460.0,0.00022136,4]
[365401411,1749655839836,-460.0,0.00022136,4]
[365401413,1749655839846,-460.0,0.00022136,4]
[365401415,1749655839855,-460.0,0.00022136,4]
[365401417,1749655839865,-533.79,0.00022136,4]
[365401420,1749655839874,-460.0,0.00022136,4]
[365401421,1749655839884,-460.0,0.00022136,4]
[365401423,1749655839894,-460.0,0.00022136,4]
[365401425,1749655839904,-1580.97,0.00022136,4]
[365401427,1749655839914,-460.0,0.00022136,4]
[365401429,1749655839923,-460.0,0.00022136,4]
[365401431,1749655839932,-460.0,0.00022136,4]
[365401434,1749655839943,-460.0,0.00022136,4]
[365401435,1749655839953,-338.4,0.00022137,2]
[365401438,1749655839963,-460.0,0.00022137,4]
[365401439,1749655839973,-460.0,0.00022137,4]
[365401441,1749655839983,-460.0,0.00022137,4]
[365401443,1749655839994,-460.0,0.00022137,4]
[365401445,1749655840004,-460.0,0.00022137,4]
[365401447,1749655840013,-460.0,0.00022137,4]
[365401449,1749655840023,-460.0,0.00022137,4]
[365401452,1749655840034,-460.0,0.00022137,4]
[365401454,1749655840043,-460.0,0.00022137,4]
[365401456,1749655840053,-460.0,0.00022137,4]
[365401457,1749655840063,-460.0,0.00022137,2]
[365401459,1749655840072,-460.0,0.00022137,4]
[365401461,1749655840082,-460.0,0.00022138,4]
[365401463,1749655840091,-460.0,0.00022138,4]
[365401465,1749655840101,-460.0,0.00022138,4]
[365401468,1749655840111,-392.43854041,0.00022138,4]
[365401469,1749655840120,-460.0,0.00022138,4]
[365401471,1749655840131,-460.0,0.00022138,4]
[365401473,1749655840141,-500.0,0.00022139,2]
[365401475,1749655840151,-500.0,0.00022139,2]
[365401477,1749655840161,-1000.0,0.00022139,30]
[365401479,1749655840171,-1000.0,0.00022139,30]
[365401482,1749655840181,-179.61,0.00022139,2]
[365401484,1749655840190,-293.2119209,0.00022149,2]
[365401485,1749655840200,-151.0,0.00022157,2]
[365401487,1749655840209,-500.0,0.00022157,2]
[365401489,1749655840219,-151.0,0.00022185,2]
[365401491,1749655840228,-413.09802352,0.00022185,2]
[365401493,1749655840238,-606.94740513,0.00022192,2]
[365401495,1749655840249,-500.0,0.00022192,2]
[365401497,1749655840258,-500.0,0.00022192,2]
[365401499,1749655840267,-500.0,0.00022192,2]
[365401501,1749655840277,-500.0,0.00022192,2]
[365401503,1749655840287,-500.0,0.00022192,2]
[365401505,1749655840296,-500.0,0.00022192,2]
[365401507,1749655840306,-500.0,0.00022192,2]
[365401509,1749655840315,-500.0,0.00022192,2]
[365401511,1749655840325,-416.27398155,0.00022192,2]
[365401513,1749655840334,-500.0,0.00022192,2]
[365401515,1749655840343,-500.0,0.00022206,2]
[365401517,1749655840353,-500.0,0.00022206,2]
[365401519,1749655840364,-500.0,0.00022206,2]
[365401521,1749655840373,-500.0,0.00022206,2]
[365401523,1749655840383,-500.0,0.00022206,2]
[365401525,1749655840392,-2061.85221498,0.0002221,6]
[365401527,1749655840402,-166.17845751,0.00022212,2]
[365401529,1749655840412,-740.03,0.00022218,7]
[365401531,1749655840422,-1000.0,0.0002229,2]
[365401533,1749655840432,-500.0,0.0002229,2]
[365401535,1749655840441,-500.0,0.0002229,2]
[365401537,1749655840451,-500.0,0.0002229,2]
[365401539,1749655840460,-681.02088792,0.00022309,2]
[365401541,1749655840470,-2061.85221498,0.00022314,7]
[365401543,1749655840480,-500.0,0.00022317,2]
[365401546,1749655840489,-500.0,0.00022317,2]
[365401547,1749655840500,-740.03,0.00022318,7]
[365401549,1749655840510,-1000.000001,0.0002238,2]
[365401551,1749655840521,-500.0,0.00022385,2]
[365401553,1749655840531,-471.80539523,0.00022385,2]
[365401555,1749655840541,-500.0,0.00022385,2]
[365401557,1749655840551,-500.0,0.00022408,2]
[365401559,1749655840560,-460.0,0.00022409,4]
[365401561,1749655840575,-460.0,0.00022409,4]
[365401563,1749655840585,-460.0,0.00022409,4]
[365401565,1749655840594,-1382.36,0.00022409,4]
[365401567,1749655840603,-1216.83,0.00022409,4]
[365401570,1749655840619,-2711.97,0.00022409,4]
[365401572,1749655840628,-1361.86,0.00022409,4]
[365401573,1749655840638,-460.0,0.00022409,4]
[365401576,1749655840648,-460.0,0.00022409,4]
[365401577,1749655840657,-473.54,0.00022409,4]
[365401579,1749655840667,-460.0,0.00022409,4]
[365401581,1749655840677,-833.58,0.00022409,4]
[365401583,1749655840687,-460.0,0.00022409,4]
[365401585,1749655840706,-1222.58,0.00022409,4]
[365401587,1749655840721,-460.0,0.0002241,4]
[365401589,1749655840732,-460.0,0.0002241,4]
[365401591,1749655840745,-460.0,0.0002241,4]
[365401593,1749655840756,-460.0,0.0002241,4]
[365401595,1749655840776,-460.0,0.0002241,4]
[365401597,1749655840793,-460.0,0.0002241,4]
[365401599,1749655840803,-460.0,0.0002241,4]
[365401601,1749655840813,-460.0,0.0002241,4]
[365401603,1749655840824,-1403.55,0.0002241,4]
[365401605,1749655840833,-460.0,0.0002241,4]
[365401607,1749655840843,-460.0,0.0002241,4]
[365401609,1749655840852,-460.0,0.0002241,4]
[365401611,1749655840862,-460.0,0.0002241,4]
[365401613,1749655840871,-460.0,0.0002241,4]
[365401615,1749655840881,-460.0,0.0002241,4]
[365401617,1749655840890,-460.0,0.0002241,4]
[365401619,1749655840900,-460.0,0.0002241,4]
[365401621,1749655840909,-460.0,0.0002241,4]
[365401623,1749655840919,-533.79,0.0002241,4]
[365401625,1749655840928,-460.0,0.0002241,4]
[365401627,1749655840938,-460.0,0.0002241,4]
[365401629,1749655840947,-460.0,0.0002241,4]
[365401631,1749655840956,-1580.97,0.0002241,4]
[365401633,1749655840966,-460.0,0.0002241,4]
[365401636,1749655840980,-460.0,0.0002241,4]
[365401637,1749655840990,-460.0,0.0002241,4]
[365401639,1749655841005,-460.0,0.0002241,4]
[365401641,1749655841015,-460.0,0.00022411,4]
[365401643,1749655841024,-460.0,0.00022411,4]
[365401645,1749655841033,-460.0,0.00022411,4]
[365401647,1749655841043,-460.0,0.00022411,4]
[365401649,1749655841053,-460.0,0.00022411,4]
[365401651,1749655841062,-460.0,0.00022411,4]
[365401653,1749655841072,-460.0,0.00022411,4]
[365401655,1749655841081,-460.0,0.00022411,4]
[365401658,1749655841095,-460.0,0.00022411,4]
[365401660,1749655841104,-460.0,0.00022411,4]
[365401662,1749655841113,-460.0,0.00022411,2]
[365401664,1749655841123,-460.0,0.00022411,4]
[365401666,1749655841133,-403.0184,0.00022412,4]
[365401668,1749655841142,-460.0,0.00022412,4]
[365401670,1749655841152,-460.0,0.00022412,4]
[365401672,1749655841161,-460.0,0.00022412,4]
[365401674,1749655841171,-460.0,0.00022412,4]
[365401676,1749655841181,-2061.85221498,0.00022417,7]
[365401678,1749655841190,-740.03,0.00022418,3]
[365401680,1749655841199,-501.44023844,0.00022443,2]
[365401682,1749655841209,-367.65937497,0.00022443,2]
[365401684,1749655841218,-681.02088792,0.00022457,2]
[365401686,1749655841228,-536.47,0.00022465,4]
[365401687,1749655841237,-274.0,0.00022477,2]
[365401690,1749655841253,-3449.18,0.000225,7]
[365401691,1749655841263,-168.0,0.00022516,2]
[365401693,1749655841273,-740.03,0.00022518,4]
[365401696,1749655841284,-844.64040732,0.00022521,7]
[365401698,1749655841293,-2061.85221498,0.00022521,7]
[365401700,1749655841303,-160.0,0.00022521,7]
[365401701,1749655841312,-158.49587618,0.00022548,2]
[365401703,1749655841321,-439.84817939,0.00022557,2]
[365401705,1749655841331,-160.0,0.00022585,4]
[365401707,1749655841341,-442.23880434,0.00022588,2]
[365401709,1749655841351,-5000.0,0.0002259,2]
[365401712,1749655841360,-37488.37509972,0.000226,2]
[365401713,1749655841370,-30000.0,0.000226,5]
[365401716,1749655841379,-681.02088792,0.00022605,2]
[365401718,1749655841389,-740.03,0.00022618,6]
[365401720,1749655841399,-2061.85221498,0.00022624,7]
[365401722,1749655841409,-500.0,0.00022673,2]
[365401723,1749655841418,-500.0,0.00022673,2]
[365401726,1749655841428,-500.0,0.00022673,2]
[365401728,1749655841438,-500.0,0.00022673,2]
[365401729,1749655841448,-500.0,0.00022673,2]
[365401732,1749655841458,-500.0,0.00022673,2]
[365401734,1749655841469,-360.0,0.00022683,4]
[365401736,1749655841478,-460.0,0.00022683,4]
[365401738,1749655841489,-460.0,0.00022683,4]
[365401740,1749655841501,-1382.36,0.00022683,4]
[365401742,1749655841511,-1216.83,0.00022683,4]
[365401744,1749655841520,-2711.97,0.00022683,4]
[365401746,1749655841529,-1361.86,0.00022683,4]
[365401748,1749655841538,-460.0,0.00022683,4]
[365401750,1749655841550,-460.0,0.00022683,4]
[365401752,1749655841559,-473.54,0.00022683,4]
[365401753,1749655841571,-460.0,0.00022683,4]
[365401756,1749655841581,-833.58,0.00022683,4]
[365401757,1749655841590,-460.0,0.00022683,4]
[365401759,1749655841600,-1222.58,0.00022683,4]
[365401762,1749655841614,-460.0,0.00022684,4]
[365401763,1749655841623,-460.0,0.00022684,4]
[365401766,1749655841633,-460.0,0.00022684,4]
[365401768,1749655841642,-460.0,0.00022684,4]
[365401770,1749655841652,-460.0,0.00022684,4]
[365401772,1749655841662,-460.0,0.00022684,4]
[365401773,1749655841672,-460.0,0.00022684,4]
[365401776,1749655841682,-460.0,0.00022684,4]
[365401778,1749655841692,-1403.55,0.00022684,4]
[365401780,1749655841703,-460.0,0.00022684,4]
[365401782,1749655841712,-460.0,0.00022684,4]
[365401784,1749655841722,-460.0,0.00022684,4]
[365401786,1749655841731,-460.0,0.00022684,4]
[365401788,1749655841740,-460.0,0.00022684,4]
[365401790,1749655841753,-460.0,0.00022684,4]
[365401792,1749655841763,-460.0,0.00022684,4]
[365401794,1749655841772,-460.0,0.00022684,4]
[365401796,1749655841781,-460.0,0.00022684,4]
[365401797,1749655841790,-533.79,0.00022684,4]
[365401799,1749655841800,-460.0,0.00022684,4]
[365401800,1749655841809,-460.0,0.00022684,4]
[365401801,1749655841819,-460.0,0.00022684,4]
[365401802,1749655841828,-1580.97,0.00022684,4]
[365401803,1749655841837,-460.0,0.00022684,4]
[365401804,1749655841846,-460.0,0.00022684,4]
[365401805,1749655841856,-151.0,0.00022684,7]
[365401807,1749655841865,-460.0,0.00022684,4]
[365401809,1749655841874,-460.0,0.00022684,4]
[365401811,1749655841883,-460.0,0.00022685,4]
[365401813,1749655841893,-460.0,0.00022685,4]
[365401815,1749655841903,-460.0,0.00022685,4]
[365401817,1749655841912,-460.0,0.00022685,4]
[365401819,1749655841922,-460.0,0.00022685,4]
[365401821,1749655841932,-460.0,0.00022685,4]
[365401822,1749655841941,-460.0,0.00022685,4]
[365401828,1749655842037,-460.0,0.00022685,4]
[365401830,1749655842047,-460.0,0.00022685,4]
[365401831,1749655842057,-460.0,0.00022685,4]
[365401832,1749655842067,-460.0,0.00022685,2]
[365401833,1749655842077,-460.0,0.00022685,4]
[365401834,1749655842086,-460.0,0.00022686,4]
[365401835,1749655842096,-460.0,0.00022686,4]
[365401836,1749655842105,-460.0,0.00022686,4]
[365401837,1749655842115,-460.0,0.00022686,4]
[365401838,1749655842125,-500.0,0.00022687,2]
[365401839,1749655842135,-500.0,0.00022687,3]
[365401840,1749655842145,-177730.46,0.000227,7]
[365401841,1749655842155,-250.743619,0.000227,7]
[365401842,1749655842164,-250.743619,0.000227,7]
[365401843,1749655842174,-151.0,0.000227,7]
[365401844,1749655842184,-151.0,0.000227,7]
[365401845,1749655842193,-151.0,0.000227,7]
[365401846,1749655842203,-151.0,0.000227,7]
[365401847,1749655842213,-151.0,0.000227,7]
[365401848,1749655842222,-151.0,0.000227,7]
[365401849,1749655842232,-151.0,0.000227,7]
[365401850,1749655842241,-151.0,0.000227,7]
[365401851,1749655842253,-158.577103,0.000227,7]
[365401852,1749655842263,-151.0,0.000227,7]
[365401853,1749655842272,-151.0,0.000227,7]
[365401854,1749655842282,-151.0,0.000227,7]
[365401855,1749655842292,-151.0,0.000227,2]
[365401856,1749655842302,-151.0,0.000227,2]
[365401857,1749655842311,-151.0,0.000227,7]
[365401860,1749655842332,-151.0,0.000227,7]
[365401861,1749655842344,-11860.25191276,0.000227,7]
[365401864,1749655842354,-151.0,0.000227,7]
[365401866,1749655842365,-151.0,0.000227,7]
[365401867,1749655842375,-151.0,0.000227,7]
[365401868,1749655842386,-151.0,0.000227,7]
[365401869,1749655842395,-152.052705,0.000227,7]
[365401870,1749655842406,-151.0,0.000227,7]
[365401871,1749655842417,-376662.60173744,0.000227,2]
[365401872,1749655842429,-160.0,0.000227,7]
[365401873,1749655842441,-151.0,0.000227,7]
[365401874,1749655842457,-506.124046,0.000227,7]
[365401875,1749655842472,-506.124046,0.000227,7]
[365401876,1749655842493,-740.03,0.00022718,7]
[365401879,1749655842506,-2061.85221498,0.00022728,7]
[365401880,1749655842518,-681.02088792,0.00022752,2]
[365401881,1749655842529,-1000.0,0.00022754,2]
[365401882,1749655842541,-385.02610441,0.00022754,2]
[365401883,1749655842553,-500.0,0.00022754,2]
[365401884,1749655842567,-348.8138739,0.00022773,2]
[365401885,1749655842584,-1000.0,0.0002278,2]
[365401886,1749655842595,-151.0,0.000228,7]
[365401887,1749655842606,-740.03,0.00022818,2]
[365401889,1749655842618,-161.74732891,0.00022822,2]
[365401890,1749655842629,-2061.85221498,0.00022831,8]
[365401891,1749655842639,-2000.0,0.00022838,2]
[365401892,1749655842649,-245.0273,0.00022838,2]
[365401893,1749655842660,-158.49587618,0.00022849,2]
[365401894,1749655842671,-156.9909581,0.00022849,2]
[365401895,1749655842680,-681.02088792,0.000229,2]
[365401896,1749655842690,-740.03,0.00022918,2]
[365401897,1749655842700,-2205.21,0.00022924,2]
[365401899,1749655842709,-1000.0,0.00022933,2]
[365401901,1749655842719,-2061.85221498,0.00022934,8]
[365401903,1749655842729,-340.0,0.00022957,4]
[365401904,1749655842739,-460.0,0.00022957,4]
[365401905,1749655842750,-1382.36,0.00022957,4]
[365401907,1749655842760,-1216.83,0.00022957,4]
[365401909,1749655842771,-2711.97,0.00022957,4]
[365401910,1749655842781,-1361.86,0.00022957,4]
[365401911,1749655842791,-460.0,0.00022957,4]
[365401912,1749655842801,-460.0,0.00022957,4]
[365401913,1749655842812,-473.54,0.00022957,4]
[365401914,1749655842822,-313.2271762,0.00022957,4]
[365401915,1749655842832,-833.58,0.00022957,4]
[365401916,1749655842842,-460.0,0.00022957,4]
[365401917,1749655842852,-1222.58,0.00022957,4]
[365401918,1749655842863,-460.0,0.00022958,4]
[365401919,1749655842872,-340.0,0.00022958,4]
[365401920,1749655842882,-460.0,0.00022958,4]
[365401921,1749655842891,-460.0,0.00022958,4]
[365401922,1749655842901,-504.22,0.00022958,4]
[365401923,1749655842911,-460.0,0.00022958,4]
[365401925,1749655842920,-460.0,0.00022958,4]
[365401926,1749655842929,-340.0,0.00022958,4]
[365401927,1749655842939,-1403.55,0.00022958,4]
[365401928,1749655842949,-460.0,0.00022958,4]
[365401929,1749655842959,-460.0,0.00022958,4]
[365401930,1749655842969,-340.0,0.00022958,4]
[365401931,1749655842980,-460.0,0.00022958,4]
[365401932,1749655842990,-460.0,0.00022958,4]
[365401933,1749655843001,-460.0,0.00022958,4]
[365401934,1749655843012,-340.0,0.00022958,4]
[365401936,1749655843021,-434.6,0.00022958,4]
[365401937,1749655843031,-460.0,0.00022958,4]
[365401938,1749655843041,-533.79,0.00022958,4]
[365401939,1749655843051,-460.0,0.00022958,4]
[365401940,1749655843060,-460.0,0.00022958,4]
[365401941,1749655843071,-489.34960142,0.00022958,4]
[365401942,1749655843081,-1580.97,0.00022958,4]
[365401943,1749655843092,-460.0,0.00022958,4]
[365401944,1749655843102,-460.0,0.00022958,4]
[365401945,1749655843112,-460.0,0.00022958,4]
[365401946,1749655843122,-460.0,0.00022958,4]
[365401947,1749655843131,-340.0,0.00022959,4]
[365401948,1749655843141,-460.0,0.00022959,4]
[365401949,1749655843150,-340.0,0.00022959,4]
[365401950,1749655843160,-538.78,0.00022959,4]
[365401951,1749655843170,-340.0,0.00022959,4]
[365401952,1749655843180,-460.0,0.00022959,4]
[365401953,1749655843189,-427.84,0.00022959,4]
[365401954,1749655843199,-340.0,0.00022959,4]
[365401955,1749655843208,-340.0,0.00022959,4]
[365401956,1749655843217,-340.0,0.00022959,4]
[365401957,1749655843227,-460.0,0.00022959,2]
[365401958,1749655843236,-340.0,0.00022959,4]
[365401959,1749655843247,-340.0,0.0002296,4]
[365401960,1749655843256,-340.0,0.0002296,4]
[365401961,1749655843266,-460.0,0.0002296,4]
[365401962,1749655843276,-340.0,0.0002296,4]
[365401963,1749655843286,-1000.0,0.0002299,2]
[365401964,1749655843296,-72390.74,0.00022997,7]
[365401965,1749655843305,-151.0,0.00022997,7]